[Event "7th Cesme Open-C 2019"]
[Site "Cesme"]
[Date "2019.06.29"]
[Round "8"]
[White "Ceylan, Goktug"]
[Black "Yenen, Utku"]
[Result "1/2-1/2"]
[ECO "D60"]
[WhiteElo "1283"]
[BlackElo "1341"]
[Annotator "NA"]
[PlyCount "120"]
[EventDate "2019.06.24"]
[EventType "swiss"]
[EventCountry "TUR"]
[SourceTitle "playchess.com"]
[Source "ChessBase"]
[SourceQuality "1"]
[TimeControl "5400+30"]

1. d4 {[%emt 0:00:30]} e6 {[%emt 0:00:30]} 2. c4 {[%emt 0:00:30]} d5 {[%emt 0:00:30]} 3. Nc3 {[%emt 0:00:30]} Nf6 {[%emt 0:00:00]} 4. Bg5 {[%emt 0:00:00]} Nbd7 {[%emt 0:00:00]} 5. e3 {[%emt 0:00:00]} Be7 {[%emt 0:00:30]} 6. Nf3 {[%emt 0:01:30]} O-O {[%emt 0:00:00]} 7. Bd3 {[%emt 0:00:30]} a6 {[%emt 0:01:00]} 8. O-O {[%emt 0:01:30]} dxc4 {[%emt 0:00:30]} 9. Bxc4 {[%emt 0:00:30]} b5 {[%emt 0:03:30]} 10. Bd3 {[%emt 0:00:30]} Bb7 {[%emt 0:00:30]} 11. Bxf6 {[%emt 0:07:30]} Nxf6 {[%emt 0:00:00]} 12. e4 {[%emt 0:03:30]} b4 {[%emt 0:14:00]} 13. e5 {[%emt 0:00:30]} bxc3 {[%emt 0:00:30]} 14. exf6 {[%emt 0:00:30]} Bxf6 {[%emt 0:01:30]} 15. bxc3 {[%emt 0:00:30]} c5 {[%emt 0:00:30]} 16. dxc5 {[%emt 0:06:30]} Rc8 {[%emt 0:04:30]} 17. Rb1 {[%emt 0:04:30]} Bxf3 {[%emt 0:03:30]} 18. Qxf3 {[%emt 0:01:30]} Rxc5 {[%emt 0:00:30]} 19. Qe2 {[%emt 0:09:30]} Rxc3 {[%emt 0:10:30]} 20. Bxa6 {[%emt 0:01:30]} Qa5 {[%emt 0:00:30]} 21. Bc4 {[%emt 0:00:30]} Qc7 {[%emt 0:05:30]} 22. Rfc1 {[%emt 0:03:30]} Rxc1+ {[%emt 0:00:30]} 23. Rxc1 {[%emt 0:00:30]} g6 {[%emt 0:00:30]} 24. Rc2 {[%emt 0:01:30]} Qb7 {[%emt 0:01:30]} 25. Bb3 {[%emt 0:01:30]} Kg7 {[%emt 0:00:30]} 26. Rc4 {[%emt 0:04:30]} Rc8 {[%emt 0:02:30]} 27. Rxc8 {[%emt 0:00:30]} Qxc8 {[%emt 0:00:30]} 28. Qc4 {[%emt 0:00:00]} Qxc4 {[%emt 0:00:30]} 29. Bxc4 {[%emt 0:00:00]} Bc3 {[%emt 0:00:00]} 30. a4 {[%emt 0:00:30]} e5 {[%emt 0:01:00]} 31. g3 {[%emt 0:01:30]} f5 {[%emt 0:00:00]} 32. f4 {[%emt 0:00:00]} exf4 {[%emt 0:01:00]} 33. gxf4 {[%emt 0:00:00]} Bd2 {[%emt 0:00:00]} 34. a5 {[%emt 0:00:30]} Bxf4 {[%emt 0:00:00]} 35. a6 {[%emt 0:00:30]} Be3+ {[%emt 0:00:30]} 36. Kg2 {[%emt 0:00:30]} Ba7 {[%emt 0:00:00]} 37. h4 {[%emt 0:00:00]} Kf6 {[%emt 0:00:00]} 38. Kg3 {[%emt 0:01:00]} h6 {[%emt 0:00:30]} 39. Bd3 {[%emt 0:00:30]} g5 {[%emt 0:00:30]} 40. Kh3 {[%emt 0:00:30]} g4+ {[%emt 0:00:30]} 41. Kg3 {[%emt 0:00:30]} Bb8+ {[%emt 0:00:00]} 42. Kg2 {[%emt 0:03:30]} Ke5 {[%emt 0:00:00]} 43. Bb5 {[%emt 0:00:00]} Kd6 {[%emt 0:04:30]} 44. Bd3 {[%emt 0:00:00]} Ke6 {[%emt 0:00:30]} 45. Bc4+ {[%emt 0:00:30]} Kf6 {[%emt 0:00:30]} 46. Bb5 {[%emt 0:00:30]} Ke7 {[%emt 0:01:30]} 47. Bd3 {[%emt 0:00:30]} Ke6 {[%emt 0:00:30]} 48. Bc4+ {[%emt 0:00:30]} Ke5 {[%emt 0:00:00]} 49. Bb5 {[%emt 0:00:00]} Ke4 {[%emt 0:01:00]} 50. Bc6+ {[%emt 0:00:00]} Ke3 {[%emt 0:00:30]} 51. Bd7 {[%emt 0:00:30]} Kf4 {[%emt 0:00:30]} 52. Bc6 {[%emt 0:00:30]} g3 {[%emt 0:00:30]} 53. Bd7 {[%emt 0:00:30]} Ke4 {[%emt 0:00:30]} 54. Bxf5+ {[%emt 0:00:00]} Kxf5 {[%emt 0:00:30]} 55. a7 {[%emt 0:00:00]} Bxa7 {[%emt 0:00:30]} 56. Kxg3 {[%emt 0:00:30]} h5 {[%emt 0:00:30]} 57. Kg2 {[%emt 0:00:30]} Kg4 {[%emt 0:00:30]} 58. Kh1 {[%emt 0:00:30]} Kxh4 {[%emt 0:00:00]} 59. Kg2 {[%emt 0:00:00]} Kg4 {[%emt 0:00:00]} 60. Kh1 {[%emt 0:00:00]} Kh4 {[%emt 0:01:30]} 1/2-1/2

[Event "7th Cesme Open-C 2019"]
[Site "Cesme"]
[Date "2019.06.29"]
[Round "8"]
[White "Basdar, Atakan"]
[Black "Eken, Sevki Kivanc"]
[Result "0-1"]
[ECO "B07"]
[WhiteElo "1242"]
[BlackElo "1232"]
[Annotator "NA"]
[PlyCount "102"]
[EventDate "2019.06.24"]
[EventType "swiss"]
[EventCountry "TUR"]
[SourceTitle "playchess.com"]
[Source "ChessBase"]
[SourceQuality "1"]
[TimeControl "5400+30"]

1. d4 {[%emt 0:11:30]} Nf6 {[%emt 0:00:30]} 2. Bf4 {[%emt 0:00:00]} d6 {[%emt 0:00:30]} 3. Nc3 {[%emt 0:00:00]} g6 {[%emt 0:00:30]} 4. e4 {[%emt 0:00:00]} Bg7 {[%emt 0:00:00]} 5. Qd2 {[%emt 0:00:00]} O-O {[%emt 0:04:00]} 6. Bh6 {[%emt 0:00:30]} Nc6 {[%emt 0:00:00]} 7. Nge2 {[%emt 0:00:30]} e5 {[%emt 0:00:00]} 8. d5 {[%emt 0:00:30]} Ne7 {[%emt 0:00:30]} 9. f3 {[%emt 0:01:30]} Ne8 {[%emt 0:03:30]} 10. h4 {[%emt 0:01:30]} f5 {[%emt 0:01:30]} 11. h5 {[%emt 0:02:30]} f4 {[%emt 0:02:30]} 12. Bxg7 {[%emt 0:02:30]} Nxg7 {[%emt 0:01:30]} 13. hxg6 {[%emt 0:02:30]} hxg6 {[%emt 0:00:30]} 14. O-O-O {[%emt 0:01:30]} g5 {[%emt 0:03:30]} 15. Qe1 {[%emt 0:00:30]} Ng6 {[%emt 0:01:30]} 16. g3 {[%emt 0:01:30]} Kf7 {[%emt 0:01:30]} 17. gxf4 {[%emt 0:01:30]} gxf4 {[%emt 0:00:00]} 18. Rg1 {[%emt 0:00:30]} a6 {[%emt 0:00:00]} 19. Qf2 {[%emt 0:01:30]} Rh8 {[%emt 0:02:30]} 20. Bg2 {[%emt 0:03:30]} Qh4 {[%emt 0:00:30]} 21. Qf1 {[%emt 0:01:30]} Bd7 {[%emt 0:00:30]} 22. Rh1 {[%emt 0:00:00]} Qf6 {[%emt 0:00:30]} 23. Qf2 {[%emt 0:00:00]} b6 {[%emt 0:03:30]} 24. Rdg1 {[%emt 0:02:30]} Rxh1 {[%emt 0:05:30]} 25. Rxh1 {[%emt 0:00:30]} Rh8 {[%emt 0:00:00]} 26. Qf1 {[%emt 0:00:30]} Rxh1 {[%emt 0:00:00]} 27. Qxh1 {[%emt 0:00:30]} Qh4 {[%emt 0:00:30]} 28. Qxh4 {[%emt 0:00:30]} Nxh4 {[%emt 0:00:30]} 29. Bh1 {[%emt 0:00:30]} Nh5 {[%emt 0:00:30]} 30. Nd1 {[%emt 0:01:30]} Ng3 {[%emt 0:01:30]} 31. Nxg3 {[%emt 0:01:30]} fxg3 {[%emt 0:00:30]} 32. Ne3 {[%emt 0:00:00]} Bh3 {[%emt 0:00:00]} 33. Kd2 {[%emt 0:00:00]} g2 {[%emt 0:00:00]} 34. Bxg2 {[%emt 0:00:00]} Bxg2 {[%emt 0:00:30]} 35. Nxg2 {[%emt 0:00:00]} Nxg2 {[%emt 0:00:00]} 36. Ke2 {[%emt 0:00:30]} Nf4+ {[%emt 0:00:00]} 37. Ke3 {[%emt 0:00:30]} Kg6 {[%emt 0:00:00]} 38. c4 {[%emt 0:00:30]} Kh5 {[%emt 0:00:00]} 39. b4 {[%emt 0:00:00]} Kh4 {[%emt 0:00:30]} 40. a4 {[%emt 0:00:00]} a5 {[%emt 0:00:30]} 41. b5 {[%emt 0:00:30]} Kg3 {[%emt 0:00:30]} 42. Kd2 {[%emt 0:00:00]} Kxf3 {[%emt 0:00:00]} 43. Kc3 {[%emt 0:00:00]} Kxe4 {[%emt 0:00:00]} 44. Kb2 {[%emt 0:00:00]} Kd3 {[%emt 0:00:00]} 45. Kb3 {[%emt 0:00:00]} e4 {[%emt 0:00:00]} 46. Kb2 {[%emt 0:00:30]} e3 {[%emt 0:00:30]} 47. Kb3 {[%emt 0:00:00]} e2 {[%emt 0:00:00]} 48. Ka2 {[%emt 0:00:00]} e1=Q {[%emt 0:00:00]} 49. Ka3 {[%emt 0:00:30]} Kc3 {[%emt 0:00:00]} 50. Ka2 {[%emt 0:00:30]} Qd2+ {[%emt 0:00:00]} 51. Kb1 {[%emt 0:00:00]} Qb2# {[%emt 0:00:30]} 0-1

[Event "7th Cesme Open-C 2019"]
[Site "Cesme"]
[Date "2019.06.30"]
[Round "9"]
[White "Yenen, Utku"]
[Black "Tarim, Metehan"]
[Result "1-0"]
[ECO "C25"]
[WhiteElo "1341"]
[BlackElo "1338"]
[Annotator "NA"]
[PlyCount "63"]
[EventDate "2019.06.24"]
[EventType "swiss"]
[EventCountry "TUR"]
[SourceTitle "playchess.com"]
[Source "ChessBase"]
[SourceQuality "1"]
[TimeControl "5400+30"]

1. e4 {[%emt 0:00:30]} e5 {[%emt 0:00:30]} 2. Nc3 {[%emt 0:00:00]} Nc6 {[%emt 0:00:00]} 3. Bc4 {[%emt 0:00:00]} Bc5 {[%emt 0:00:00]} 4. Qg4 {[%emt 0:00:30]} Bf8 {[%emt 0:09:30]} 5. Qg3 {[%emt 0:06:30]} Nf6 {[%emt 0:01:30]} 6. Nge2 {[%emt 0:00:30]} d6 {[%emt 0:02:30]} 7. a3 {[%emt 0:01:30]} Be6 {[%emt 0:01:30]} 8. Bxe6 {[%emt 0:02:30]} fxe6 {[%emt 0:00:00]} 9. d3 {[%emt 0:00:00]} Qd7 {[%emt 0:01:00]} 10. O-O {[%emt 0:00:00]} O-O-O {[%emt 0:00:30]} 11. b4 {[%emt 0:00:30]} h6 {[%emt 0:02:30]} 12. b5 {[%emt 0:06:30]} Ne7 {[%emt 0:01:30]} 13. a4 {[%emt 0:01:30]} g5 {[%emt 0:00:30]} 14. a5 {[%emt 0:00:30]} g4 {[%emt 0:01:30]} 15. Qe3 {[%emt 0:01:30]} Kb8 {[%emt 0:00:30]} 16. b6 {[%emt 0:01:30]} cxb6 {[%emt 0:00:30]} 17. axb6 {[%emt 0:00:30]} a6 {[%emt 0:00:30]} 18. Bb2 {[%emt 0:02:30]} Nc6 {[%emt 0:01:30]} 19. d4 {[%emt 0:06:30]} h5 {[%emt 0:02:30]} 20. Na2 {[%emt 0:02:30]} Bh6 {[%emt 0:02:30]} 21. Qd3 {[%emt 0:01:30]} exd4 {[%emt 0:01:30]} 22. Nxd4 {[%emt 0:00:30]} Ne5 {[%emt 0:00:30]} 23. Qe2 {[%emt 0:03:30]} Rhf8 {[%emt 0:08:30]} 24. Nb4 {[%emt 0:00:30]} Rc8 {[%emt 0:06:30]} 25. Nxe6 {[%emt 0:02:30]} Rf7 {[%emt 0:12:30]} 26. Nc7 {[%emt 0:00:30]} Rxc7 {[%emt 0:02:30]} 27. Nxa6+ {[%emt 0:07:30]} bxa6 {[%emt 0:00:30]} 28. Qxa6 {[%emt 0:00:00]} Ra7 {[%emt 0:00:30]} 29. bxa7+ {[%emt 0:00:00]} Ka8 {[%emt 0:00:30]} 30. Bxe5 {[%emt 0:00:30]} dxe5 {[%emt 0:00:00]} 31. Rfb1 {[%emt 0:00:30]} Rf8 {[%emt 0:02:00]} 32. Qb6 {[%emt 0:00:30]} 1-0

[Event "7th Cesme Open-C 2019"]
[Site "Cesme"]
[Date "2019.06.30"]
[Round "9"]
[White "Yucel, Sevdayil Mert"]
[Black "Kara, Goktan Can"]
[Result "1-0"]
[ECO "D53"]
[WhiteElo "1324"]
[BlackElo "1380"]
[Annotator "NA"]
[PlyCount "135"]
[EventDate "2019.06.24"]
[EventType "swiss"]
[EventCountry "TUR"]
[SourceTitle "playchess.com"]
[Source "ChessBase"]
[SourceQuality "1"]
[TimeControl "5400+30"]

1. d4 {[%emt 0:05:30]} Nf6 {[%emt 0:04:30]} 2. c4 {[%emt 0:00:30]} e6 {[%emt 0:00:30]} 3. Nc3 {[%emt 0:00:00]} d5 {[%emt 0:00:30]} 4. Bg5 {[%emt 0:00:00]} Nbd7 {[%emt 0:00:00]} 5. e3 {[%emt 0:00:30]} c6 {[%emt 0:01:00]} 6. Bd3 {[%emt 0:02:30]} Be7 {[%emt 0:00:30]} 7. Nf3 {[%emt 0:00:30]} b6 {[%emt 0:00:30]} 8. cxd5 {[%emt 0:00:30]} cxd5 {[%emt 0:00:00]} 9. O-O {[%emt 0:01:30]} Bb7 {[%emt 0:00:00]} 10. Rc1 {[%emt 0:00:30]} a6 {[%emt 0:00:30]} 11. a4 {[%emt 0:02:30]} O-O {[%emt 0:00:30]} 12. Qb3 {[%emt 0:11:30]} Ne4 {[%emt 0:01:30]} 13. Bxe7 {[%emt 0:01:30]} Qxe7 {[%emt 0:00:30]} 14. Bb1 {[%emt 0:03:30]} f5 {[%emt 0:00:30]} 15. Rfd1 {[%emt 0:12:30]} Kh8 {[%emt 0:00:30]} 16. Ne2 {[%emt 0:05:30]} Rac8 {[%emt 0:00:30]} 17. Nf4 {[%emt 0:10:30]} Nd6 {[%emt 0:04:30]} 18. Qb4 {[%emt 0:05:30]} a5 {[%emt 0:02:30]} 19. Qa3 {[%emt 0:00:30]} g5 {[%emt 0:01:30]} 20. Nxg5 {[%emt 0:02:30]} Rg8 {[%emt 0:04:30]} 21. Ngxe6 {[%emt 0:02:30]} Nf6 {[%emt 0:01:30]} 22. f3 {[%emt 0:05:30]} Qd7 {[%emt 0:02:30]} 23. b3 {[%emt 0:03:30]} Ba6 {[%emt 0:10:30]} 24. Qb2 {[%emt 0:02:30]} Rge8 {[%emt 0:03:30]} 25. Qf2 {[%emt 0:04:07]} Rxe6 {[%emt 0:01:30]} 26. Rxc8+ {[%emt 0:01:25]} Qxc8 {[%emt 0:01:30]} 27. Nxe6 {[%emt 0:00:19]} Qxe6 {[%emt 0:00:30]} 28. Rc1 {[%emt 0:00:40]} Nde8 {[%emt 0:04:30]} 29. Qd2 {[%emt 0:01:39]} Kg7 {[%emt 0:04:30]} 30. Kf2 {[%emt 0:00:30]} h6 {[%emt 0:02:30]} 31. Bd3 {[%emt 0:00:23]} Bxd3 {[%emt 0:04:30]} 32. Qxd3 {[%emt 0:00:03]} Nh5 {[%emt 0:02:30]} 33. Qb5 {[%emt 0:02:01]} Nd6 {[%emt 0:00:30]} 34. Rc6 {[%emt 0:02:51]} f4 {[%emt 0:01:30]} 35. e4 {[%emt 0:03:35]} dxe4 {[%emt 0:08:30]} 36. Qxh5 {[%emt 0:01:52]} exf3 {[%emt 0:06:30]} 37. Qe5+ {[%emt 0:00:29]} Qxe5 {[%emt 0:00:30]} 38. dxe5 {[%emt 0:00:12]} Nf5 {[%emt 0:00:30]} 39. gxf3 {[%emt 0:00:37]} Ne7 {[%emt 0:00:30]} 40. Rxb6 {[%emt 0:00:17]} h5 {[%emt 0:01:30]} 41. Ke2 {[%emt 0:01:20]} h4 {[%emt 0:01:30]} 42. Rb7 {[%emt 0:00:32]} Kf8 {[%emt 0:00:30]} 43. Rxe7 {[%emt 0:00:53]} Kxe7 {[%emt 0:00:30]} 44. Kd3 {[%emt 0:00:01]} Kd7 {[%emt 0:00:30]} 45. Ke4 {[%emt 0:01:04]} Ke6 {[%emt 0:00:00]} 46. Kxf4 {[%emt 0:00:00]} h3 {[%emt 0:03:00]} 47. Ke4 {[%emt 0:00:00]} Ke7 {[%emt 0:00:30]} 48. f4 {[%emt 0:00:11]} Ke6 {[%emt 0:00:30]} 49. f5+ {[%emt 0:00:11]} Ke7 {[%emt 0:00:30]} 50. Kd5 {[%emt 0:00:06]} Kd7 {[%emt 0:00:30]} 51. f6 {[%emt 0:00:45]} Kd8 {[%emt 0:00:00]} 52. Kd6 {[%emt 0:00:32]} Ke8 {[%emt 0:00:00]} 53. Kc6 {[%emt 0:01:08]} Kf7 {[%emt 0:00:30]} 54. Kb6 {[%emt 0:00:00]} Ke6 {[%emt 0:00:30]} 55. Kxa5 {[%emt 0:00:00]} Kd7 {[%emt 0:00:30]} 56. Kb6 {[%emt 0:00:08]} Kd8 {[%emt 0:00:30]} 57. a5 {[%emt 0:00:19]} Kd7 {[%emt 0:00:30]} 58. a6 {[%emt 0:00:06]} Ke6 {[%emt 0:00:00]} 59. a7 {[%emt 0:00:11]} Kxe5 {[%emt 0:00:00]} 60. f7 {[%emt 0:00:30]} Kf4 {[%emt 0:00:00]} 61. f8=Q+ {[%emt 0:00:00]} Ke3 {[%emt 0:00:00]} 62. a8=Q {[%emt 0:00:04]} Kd4 {[%emt 0:00:30]} 63. Qf4+ {[%emt 0:00:09]} Kd3 {[%emt 0:00:30]} 64. Qaf3+ {[%emt 0:00:11]} Kc2 {[%emt 0:00:00]} 65. Q4g3 {[%emt 0:00:19]} Kb2 {[%emt 0:00:00]} 66. Qe2+ {[%emt 0:00:37]} Ka3 {[%emt 0:01:30]} 67. b4+ {[%emt 0:00:03]} Ka4 {[%emt 0:00:00]} 68. Qb5# {[%emt 0:00:09]} 1-0

[Event "7th Cesme Open-C 2019"]
[Site "Cesme"]
[Date "2019.06.30"]
[Round "9"]
[White "Eken, Sevki Kivanc"]
[Black "Atasoy, Ata"]
[Result "1/2-1/2"]
[ECO "D79"]
[WhiteElo "1232"]
[BlackElo "1459"]
[Annotator "NA"]
[PlyCount "103"]
[EventDate "2019.06.24"]
[EventType "swiss"]
[EventCountry "TUR"]
[SourceTitle "playchess.com"]
[Source "ChessBase"]
[SourceQuality "1"]
[TimeControl "5400+30"]

1. d4 {[%emt 0:00:30]} Nf6 {[%emt 0:00:30]} 2. Nf3 {[%emt 0:00:30]} g6 {[%emt 0:00:00]} 3. c4 {[%emt 0:00:30]} Bg7 {[%emt 0:00:00]} 4. g3 {[%emt 0:00:00]} c6 {[%emt 0:01:30]} 5. Bg2 {[%emt 0:00:00]} d5 {[%emt 0:00:00]} 6. O-O {[%emt 0:00:30]} O-O {[%emt 0:00:00]} 7. cxd5 {[%emt 0:01:30]} cxd5 {[%emt 0:00:00]} 8. Nc3 {[%emt 0:00:00]} Nc6 {[%emt 0:01:00]} 9. b3 {[%emt 0:06:00]} Ne4 {[%emt 0:07:30]} 10. Bb2 {[%emt 0:00:30]} Bf5 {[%emt 0:05:30]} 11. h3 {[%emt 0:12:30]} Nxc3 {[%emt 0:12:30]} 12. Bxc3 {[%emt 0:00:30]} Be4 {[%emt 0:00:00]} 13. Ne1 {[%emt 0:00:30]} Rc8 {[%emt 0:05:00]} 14. Bxe4 {[%emt 0:08:30]} dxe4 {[%emt 0:00:00]} 15. Nc2 {[%emt 0:00:00]} Qd7 {[%emt 0:05:00]} 16. Kg2 {[%emt 0:03:00]} Rfd8 {[%emt 0:01:30]} 17. e3 {[%emt 0:01:30]} e5 {[%emt 0:09:30]} 18. dxe5 {[%emt 0:01:30]} Nxe5 {[%emt 0:03:30]} 19. Bd4 {[%emt 0:01:30]} Qc6 {[%emt 0:08:30]} 20. Ne1 {[%emt 0:05:30]} Nd3 {[%emt 0:02:30]} 21. Nxd3 {[%emt 0:04:30]} exd3+ {[%emt 0:00:30]} 22. Kg1 {[%emt 0:00:30]} Bxd4 {[%emt 0:01:30]} 23. exd4 {[%emt 0:00:30]} Qe4 {[%emt 0:12:30]} 24. Rc1 {[%emt 0:09:30]} Qxd4 {[%emt 0:10:21]} 25. Qg4 {[%emt 0:05:30]} Rxc1 {[%emt 0:12:04]} 26. Rxc1 {[%emt 0:00:00]} Qb2 {[%emt 0:00:30]} 27. Rc8 {[%emt 0:04:00]} Rxc8 {[%emt 0:00:50]} 28. Qxc8+ {[%emt 0:00:00]} Kg7 {[%emt 0:00:00]} 29. Qd8 {[%emt 0:00:00]} d2 {[%emt 0:00:42]} 30. Kg2 {[%emt 0:00:30]} Qc3 {[%emt 0:00:26]} 31. Kh2 {[%emt 0:00:30]} h6 {[%emt 0:00:47]} 32. Qd7 {[%emt 0:02:30]} Qb2 {[%emt 0:01:08]} 33. h4 {[%emt 0:03:30]} a5 {[%emt 0:00:22]} 34. Qd6 {[%emt 0:01:30]} b5 {[%emt 0:00:59]} 35. Qd7 {[%emt 0:00:30]} a4 {[%emt 0:00:00]} 36. Qd5 {[%emt 0:00:00]} a3 {[%emt 0:00:03]} 37. Kg2 {[%emt 0:01:00]} Qc2 {[%emt 0:01:13]} 38. Qd4+ {[%emt 0:00:30]} Kh7 {[%emt 0:00:30]} 39. Qd5 {[%emt 0:00:30]} Qf5 {[%emt 0:00:57]} 40. Qxd2 {[%emt 0:00:30]} Qe5 {[%emt 0:00:00]} 41. Kf1 {[%emt 0:00:00]} g5 {[%emt 0:00:16]} 42. hxg5 {[%emt 0:02:00]} hxg5 {[%emt 0:00:02]} 43. Qd3+ {[%emt 0:01:30]} Kg7 {[%emt 0:00:13]} 44. Qd2 {[%emt 0:00:30]} Qa1+ {[%emt 0:01:59]} 45. Ke2 {[%emt 0:00:00]} Qe5+ {[%emt 0:00:00]} 46. Qe3 {[%emt 0:02:00]} Kf6 {[%emt 0:00:25]} 47. Qxe5+ {[%emt 0:01:30]} Kxe5 {[%emt 0:00:01]} 48. Kd3 {[%emt 0:00:00]} f5 {[%emt 0:00:33]} 49. f3 {[%emt 0:04:00]} f4 {[%emt 0:00:55]} 50. g4 {[%emt 0:00:30]} Kd5 {[%emt 0:00:43]} 51. b4 {[%emt 0:00:30]} Ke5 {[%emt 0:00:00]} 52. Kc3 {[%emt 0:00:30]} 1/2-1/2

[Event "7th Cesme Open-C 2019"]
[Site "Cesme"]
[Date "2019.06.30"]
[Round "9"]
[White "Tas, Yasar Asil"]
[Black "Ceylan, Goktug"]
[Result "1/2-1/2"]
[ECO "E91"]
[WhiteElo "1169"]
[BlackElo "1283"]
[Annotator "NA"]
[PlyCount "39"]
[EventDate "2019.06.24"]
[EventType "swiss"]
[EventCountry "TUR"]
[SourceTitle "playchess.com"]
[Source "ChessBase"]
[SourceQuality "1"]
[TimeControl "5400+30"]

1. Nf3 {[%emt 0:00:30]} Nf6 {[%emt 0:00:30]} 2. d4 {[%emt 0:00:00]} g6 {[%emt 0:00:30]} 3. c4 {[%emt 0:00:00]} Bg7 {[%emt 0:00:30]} 4. Nc3 {[%emt 0:00:00]} d6 {[%emt 0:00:30]} 5. e4 {[%emt 0:00:00]} O-O {[%emt 0:00:30]} 6. Bg5 {[%emt 0:00:00]} c5 {[%emt 0:09:30]} 7. d5 {[%emt 0:02:00]} Bg4 {[%emt 0:03:30]} 8. Be2 {[%emt 0:01:30]} Nbd7 {[%emt 0:01:30]} 9. Bf4 {[%emt 0:00:30]} Nh5 {[%emt 0:09:30]} 10. Bg3 {[%emt 0:00:30]} Nxg3 {[%emt 0:00:30]} 11. hxg3 {[%emt 0:00:30]} Bxc3+ {[%emt 0:09:30]} 12. bxc3 {[%emt 0:00:00]} Qa5 {[%emt 0:01:30]} 13. Qd2 {[%emt 0:00:00]} Bxf3 {[%emt 0:25:30]} 14. gxf3 {[%emt 0:00:30]} e5 {[%emt 0:00:30]} 15. Rc1 {[%emt 0:00:30]} Rfe8 {[%emt 0:03:30]} 16. Kf1 {[%emt 0:01:30]} Qd8 {[%emt 0:00:30]} 17. Kg2 {[%emt 0:00:30]} Qf6 {[%emt 0:00:30]} 18. Rh4 {[%emt 0:00:30]} Qg7 {[%emt 0:01:30]} 19. Rch1 {[%emt 0:00:30]} Nf6 {[%emt 0:01:30]} 20. Qh6 {[%emt 0:01:30]} 1/2-1/2